[Event "Ramat Gan Masters-A Winter 2023"]
[Site "Ramat Gan/ISR"]
[Date "2023.02.20"]
[Round "5.2"]
[White "Tashkinova, Sofiia"]
[Black "Chernomordik, Pavel"]
[Result "0-1"]
[Annotator "TA"]
[ECO "B06"]
[WhiteElo "1928"]
[BlackElo "2198"]
[PlyCount "186"]
[EventDate "2023.01.17"]
[EventType "swiss"]
[SourceTitle "playchess.com"]
[Source "ChessBase"]
[SourceQuality "1"]
[TimeControl "5400+30"]

{[%evp 9,186,27,35,40,54,50,113,45,53,52,59,60,79,77,80,65,88,81,96,85,68,66,162,145,127,120,105,0,-4,0,0,-22,-13,-56,0,0,0,-14,0,-4,0,-1,77,-21,0,-18,-12,-25,0,0,0,0,-19,-356,-378,-370,-350,-404,-404,-535,-528,-568,-571,-572,-560,-629,-625,-766,-743,-756,-732,-796,-494,-1018,-730,-752,-662,-853,-848,-1216,-1152,-1135,-603,-589,-528,-650,-626,-617,-605,-1007,-548,-512,-526,-589,-550,-612,-139,-139,-139,-139,-139,-183,-113,-141,-141,-141,-141,-754,-737,-720,-694,-499,-358,-1950,-1571,-1713,-1563,-1561,-1510,-1481,-1431,-1428,-1300,-962,-18,-18,0,-1331,-1268,-1134,-1061,-722,-26,-26,-18,-18,-18,-18,-18,-18,-18,-18,-18,-18,-18,-18,-14,-20,-20,-20,0,0,0,-20,-20,-20,-14,-18,-14,-18,-16,-18,-14,-14,-14,-14,-14,-14,0,-6978,-5335,-29975,-29976,-29970,-29968,-29983,-29984,-29987,-29988]} 1. e4 {[%emt 0:00:03]} g6 {[%emt 0:00:34]} 2. d4 {[%emt 0:00:19]} Bg7 {[%emt 0:00:07]} 3. Nc3 {[%emt 0:00:13]} a6 {[%emt 0:01:14]} 4. Nf3 {[%emt 0:00:35]} b5 {[%emt 0:01:07]} 5. Be3 {[%emt 0:02:24]} Bb7 {[%emt 0:03:56]} 6. h4 {[%emt 0:07:09] B06: Modern Defence.} h5 {[%emt 0:11:18]} 7. Ng5 {[%emt 0:03:12] [#]} b4 $146 {[%emt 0:09:43]} (7... e6 $14) ({Predecessor:} 7... e6 8. Bd3 d6 9. g4 hxg4 10. Qxg4 Nf6 11. Qg2 Qe7 12. O-O-O Nbd7 13. f3 Nb6 {0-1 Kollars,D (2622)-Nakamura,H (2736) Titled Tuesday intern op 09th Nov blitz 2021 (8)}) 8. Nd5 {[%emt 0:02:40]} ({White should play} 8. Na4 $16) 8... Nf6 $14 {[%emt 0:04:38]} 9. Bc4 $40 {[%emt 0:04:57][%cal Bf1c4,Bc4d3,Bd3e2][%mdl 160] Strongly threatening Nxf6+. White has some attack.} e6 {[%emt 0:06:04]} 10. Nxf6+ {[%emt 0:03:32]} Qxf6 {[%emt 0:00:35]} 11. c3 {[%emt 0:06:25]} Qe7 {[%emt 0:01:22]} 12. Bd3 {[%emt 0:06:33]} c5 {[%emt 0:06:42]} 13. O-O {[%emt 0:03:07]} (13. dxc5 $6 bxc3 14. f4 cxb2 $11) 13... cxd4 {[%emt 0:07:40]} 14. cxd4 {[%emt 0:00:46]} (14. Bxd4 f6 15. Nf3 O-O $14) 14... Nc6 {[%emt 0:00:15][%cal Bb8c6,Bc6d4,Bd4e2][%mdl 32]} 15. Be2 {[%emt 0:03:17]} e5 {[%emt 0:11:46]} (15... O-O $14) 16. d5 {[%emt 0:04:11]} Nd4 {[%emt 0:00:15]} 17. Rc1 {[%emt 0:01:32]} O-O {[%emt 0:06:36]} 18. f4 {[%emt 0:05:20]} ({White should try} 18. Bc4 $1 $16) 18... Nxe2+ $1 $11 {[%emt 0:02:45]} 19. Qxe2 {[%emt 0:00:07]} exf4 {[%emt 0:00:16]} 20. Rxf4 {[%emt 0:01:08] Hoping for Rc7.} f6 {[%emt 0:01:54]} 21. d6 {[%emt 0:09:44]} (21. Nh3 $5 {[%cal Rc1c7]}) 21... Qe8 {[%emt 0:00:42]} (21... Qxd6 $15 22. Qc4+ Bd5 23. Qxd5+ Qxd5 24. exd5 fxg5 25. Rxf8+ Rxf8 26. hxg5 Rf5 27. Rc8+ Kf7) 22. Qc4+ {[%emt 0:00:16]} Kh8 {[%emt 0:00:23]} 23. Qxb4 {[%emt 0:01:21][%cal Oc1f1]} Bc6 {[%emt 0:08:29]} (23... Rb8 {with more complications.} 24. Ba7 a5 25. Qb6 Rc8) 24. Nh3 {[%emt 0:03:01]} Rb8 {[%emt 0:00:09]} 25. Qd2 {[%emt 0:02:46]} Bxe4 {[%emt 0:00:51] Black is weak on the dark squares} (25... Qe6 $11) 26. Rcf1 {[%emt 0:04:38]} (26. Re1 $16 {And now Bd4 would win.} Bc6 27. Bd4) 26... Bf5 {[%emt 0:02:34]} 27. Rxf5 {[%emt 0:02:36]} gxf5 {[%emt 0:00:16]} 28. Rxf5 {[%emt 0:00:21]} Qg6 {[%emt 0:03:36]} (28... Qe4 $5 {[%cal Re4f5]} 29. Rxh5+ Kg8 $15) 29. Qd5 {[%emt 0:02:59]} Rb5 {[%emt 0:00:29]} (29... Rxb2 $2 30. Rxh5+ $18) 30. Bc5 {[%emt 0:00:10]} Bh6 {[%emt 0:01:13]} 31. Qf3 {[%emt 0:03:01][%mdl 8192] [#] Dodges Be3+} (31. b4 $11) 31... Be3+ $1 $19 {[%emt 0:02:37][%mdl 576] Deflection} 32. Qxe3 {[%emt 0:01:11]} Qxf5 {[%emt 0:00:03]} 33. b4 {[%emt 0:00:53]} Rbb8 {[%emt 0:01:58]} (33... Qb1+ $2 34. Kh2 $19) 34. Qh6+ {[%emt 0:03:54]} Kg8 {[%emt 0:01:15]} 35. Qd2 {[%emt 0:02:02]} Rbe8 {[%emt 0:02:05]} 36. Nf4 {[%emt 0:01:29]} Re5 {[%emt 0:00:29] Inhibits Nd5.} 37. Bd4 {[%emt 0:03:16]} Re4 {[%emt 0:00:47]} 38. Be3 {[%emt 0:00:11]} Rfe8 {[%emt 0:01:00]} 39. Nd5 {[%emt 0:00:43]} Qe5 {[%emt 0:00:19][%cal Re4e3]} 40. Bf2 {[%emt 0:00:58]} Kg7 {[%emt 0:00:43]} 41. Nc7 {[%emt 0:02:37]} (41. Ne7 $142) 41... Rg8 {[%emt 0:00:29] ...Re2 is the strong threat.} 42. Qd3 {[%emt 0:03:12]} Kh8 {[%emt 0:00:30]} 43. Qd2 {[%emt 0:00:24][%cal Rd2h6]} Rg6 {[%emt 0:00:29] Dodges Qh6+. ...Qa1+ would be deadly.} 44. Nd5 {[%emt 0:02:01]} Re2 {[%emt 0:00:44][%mdl 64] Deflection} 45. Qd3 {[%emt 0:00:41]} Qe4 {[%emt 0:00:45]} 46. Qxe4 {[%emt 0:00:45]} Rxe4 {[%emt 0:00:01]} 47. a4 {[%emt 0:00:42]} f5 {[%emt 0:00:39]} 48. Bc5 {[%emt 0:00:33]} Rc4 {[%emt 0:01:20]} 49. Nb6 {[%emt 0:00:32]} Rc1+ {[%emt 0:00:30]} 50. Kf2 {[%emt 0:00:03] [#]} a5 $1 {[%emt 0:00:36] aiming for ...Rc2+.} 51. Nxd7 {[%emt 0:00:33]} (51. Bd4+ Kg8) 51... axb4 {[%emt 0:00:25]} 52. Bxb4 {[%emt 0:00:37]} Kg8 $2 {[%emt 0:00:34]} (52... Rg4 $19 {has better winning chances.} 53. Ne5 Rxb4) 53. Ne5 $17 {[%emt 0:00:15]} Re6 {[%emt 0:00:15]} 54. d7 {[%emt 0:00:36]} Rd1 $1 {[%emt 0:00:02]} (54... Rxe5 55. d8=Q+ (55. d8=B $2 Rc2+ 56. Kf3 Re4 $19) 55... Kh7 56. Bf8 Rc2+ 57. Kg3 Re3+ 58. Kh2 $18) 55. Ba5 {[%emt 0:00:11]} Red6 {[%emt 0:01:06]} (55... Rxe5 $19 56. d8=Q+ Rxd8 57. Bxd8 Re8) 56. d8=Q+ {[%emt 0:00:28]} Rxd8 {[%emt 0:00:01]} 57. Bxd8 {[%emt 0:00:12]} Rxd8 {[%emt 0:00:04][%mdl 4096] Endgame KR-KN} 58. Nc6 {[%emt 0:00:56][%mdl 8192] Prevents Rd4.} (58. Ke3 $17) 58... Rd2+ {[%emt 0:00:37]} 59. Kf3 {[%emt 0:00:12]} Kf7 {[%emt 0:00:17]} 60. a5 {[%emt 0:01:14]} Ra2 {[%emt 0:00:11]} 61. g3 $2 {[%emt 0:00:17]} (61. Ne5+ Kf6 62. Nd3) 61... Ke6 {[%emt 0:00:43]} 62. Nd4+ {[%emt 0:00:42]} Ke5 {[%emt 0:00:30]} 63. Nc6+ {[%emt 0:00:27]} Kd6 {[%emt 0:00:41]} 64. Nd8 {[%emt 0:00:24]} Kd7 {[%emt 0:00:39]} (64... Rxa5 65. Nb7+ Ke6 66. Nxa5 $18) 65. Nb7 {[%emt 0:00:20]} Kc6 {[%emt 0:00:57]} 66. Nd8+ {[%emt 0:00:11]} Kc7 $2 {[%emt 0:00:23]} (66... Kd6 $1 $19 67. Nf7+ Ke7) 67. Ne6+ $11 {[%emt 0:00:07]} Kd6 $2 {[%emt 0:00:36][%mdl 8192]} (67... Kd7 $11 68. Ng7 Rxa5 69. Nxh5 Ke6) 68. Nd8 $19 {[%emt 0:00:45]} Ra4 {[%emt 0:00:19]} (68... Rxa5 69. Nb7+ Ke5 70. Nxa5 $18) 69. Ke3 {[%emt 0:00:44]} Kd7 {[%emt 0:00:42]} (69... Rxa5 70. Nb7+ Ke5 71. Nxa5 $18) 70. Nb7 {[%emt 0:00:19]} Kc7 $2 {[%emt 0:00:44]} (70... Re4+ $19 71. Kf3 Rc4) 71. Nc5 $11 {[%emt 0:00:08]} Rg4 {[%emt 0:00:35]} ({Much weaker is} 71... Rxa5 $6 72. Ne6+ Kd6 73. Ng7 $17) 72. Kf3 {[%emt 0:00:37]} Kd6 {[%emt 0:00:18]} 73. Nd3 {[%emt 0:01:05]} Ra4 {[%emt 0:00:36][%cal Oa4a3]} 74. Nf4 {[%emt 0:00:26]} Ra3+ {[%emt 0:00:24]} (74... Rxa5 75. Nxh5 Ke6 76. Nf4+ Kf7 77. Ng2 $15) 75. Kg2 {[%emt 0:00:25]} Rxa5 {[%emt 0:00:25]} 76. Nxh5 {[%emt 0:00:06]} Ke5 {[%emt 0:00:06]} 77. Nf4 {[%emt 0:00:22]} Ke4 {[%emt 0:00:13]} 78. Ne6 {[%emt 0:00:18]} Ra2+ {[%emt 0:00:23]} 79. Kh3 {[%emt 0:00:41]} Kf3 {[%emt 0:00:26] Threatens to win with ...Ra4.} 80. Nd4+ {[%emt 0:00:06]} Ke4 {[%emt 0:00:16]} 81. Ne6 $1 {[%emt 0:00:17]} Ke5 {[%emt 0:00:20]} 82. Nf4 {[%emt 0:00:31]} Ra3 {[%emt 0:00:23]} 83. Kg2 {[%emt 0:01:32]} Ke4 {[%emt 0:00:39]} 84. Ne6 {[%emt 0:00:29]} Rc3 {[%emt 0:00:30]} 85. Ng5+ {[%emt 0:00:48]} Ke3 {[%emt 0:00:21]} 86. Ne6 {[%emt 0:00:45]} Rc2+ {[%emt 0:00:23]} 87. Kh3 {[%emt 0:00:21]} Rc6 {[%emt 0:00:35]} 88. Nf4 {[%emt 0:00:59]} Kf3 {[%emt 0:00:23] ( -> ...Rc1)} 89. Nd3 $2 {[%emt 0:00:22][%mdl 8192] [#] Dodges Rc1} (89. h5 $11) 89... Rc3 $1 $19 {[%emt 0:00:27]} 90. Nf4 {[%emt 0:00:21]} Rc1 {[%emt 0:00:56][%cal Rc1h1] Black mates.} 91. Kh2 {[%emt 0:00:21] [#]} Kg4 $1 {[%emt 0:00:20]} 92. h5 {[%emt 0:00:58]} Rc2+ {[%emt 0:00:07][%mdl 64] Deflection} 93. Kg1 {[%emt 0:00:15]} Kxg3 {[%emt 0:00:16] A wild game.   Weighted Error Value: White=0.44/Black=0.13 (very precise)} 0-1

[Event "Ramat Gan Masters-A Winter 2023"]
[Site "Ramat Gan/ISR"]
[Date "2023.02.20"]
[Round "5.3"]
[White "Gershkowich, David"]
[Black "Gurevich, Neria"]
[Result "1-0"]
[Annotator "TA"]
[ECO "B24"]
[WhiteElo "2188"]
[BlackElo "1543"]
[PlyCount "107"]
[EventDate "2023.01.17"]
[EventType "swiss"]
[SourceTitle "playchess.com"]
[Source "ChessBase"]
[SourceQuality "1"]
[TimeControl "5400+30"]

{[%evp 10,106,26,0,0,-11,-5,0,0,-16,0,2,0,0,38,-3,19,8,13,2,6,0,-8,0,-15,-20,61,0,18,22,44,-70,0,-73,-70,-126,-104,-121,-108,-125,-132,-118,-118,-73,-81,-97,-85,-95,-74,-56,-64,-159,-56,-38,46,39,41,40,38,29,41,16,23,23,52,44,145,145,252,224,349,272,349,160,150,51,116,128,921,912,872,46,845,841,29988,0,29989,29990,29994,29995,29995,29996,29996,29997,29997,29998,29998,29999,29999]} 1. e4 {[%emt 0:00:10]} c5 {[%emt 0:00:04]} 2. Nc3 {[%emt 0:00:14]} Nc6 {[%emt 0:00:22]} 3. Nge2 {[%emt 0:00:14]} e6 {[%emt 0:00:41]} 4. g3 {[%emt 0:01:17]} Nf6 {[%emt 0:00:37]} 5. Bg2 {[%emt 0:00:41]} Be7 {[%emt 0:01:05]} 6. d3 {[%emt 0:00:14]} O-O {[%emt 0:00:45] B24: Closed Sicilian: 3 g3 sidelines.} 7. h3 {[%emt 0:00:27]} d5 {[%emt 0:00:47]} 8. exd5 {[%emt 0:01:09]} exd5 {[%emt 0:00:08] The position is equal.} 9. O-O {[%emt 0:00:17]} Be6 {[%emt 0:00:59]} (9... d4 $5 {[%cal Rd4c3]} 10. Ne4 Nxe4 11. dxe4 Re8 $11) 10. Nf4 {[%emt 0:03:27]} Qd7 {[%emt 0:02:43]} 11. Re1 {[%emt 0:00:58]} a6 {[%emt 0:01:08] [#]} (11... Bd6 $5 {[%cal Rd6f4]}) 12. a3 $146 {[%emt 0:08:30]} (12. Na4 $5 {[%cal Ra4b6]} Rab8 13. c4 $11) ({Predecessor:} 12. Kh2 Rac8 13. Bd2 b5 14. a4 b4 15. Nce2 Bf5 16. Ng1 c4 17. dxc4 dxc4 18. Nf3 {0-1 Tang,T-Glass,A Burnaby 2003 (2)}) 12... b5 {[%emt 0:02:31]} 13. Bd2 {[%emt 0:00:39]} Rad8 {[%emt 0:01:49]} 14. Rb1 {[%emt 0:05:41]} c4 {[%emt 0:03:36]} 15. Nce2 {[%emt 0:15:23]} Bc5 {[%emt 0:04:09]} 16. Bc3 {[%emt 0:03:17] Bxf6 is the strong threat.} d4 {[%emt 0:02:45]} 17. Bd2 {[%emt 0:01:43]} Nd5 {[%emt 0:03:31]} (17... Qd6 $11) 18. Be4 {[%emt 0:09:33]} ({White should play} 18. Nxe6 $14 fxe6 19. Nf4 Nxf4 20. Bxf4) 18... Nce7 {[%emt 0:06:00]} 19. Nxe6 {[%emt 0:02:25]} fxe6 {[%emt 0:00:54][%cal Bf7e6,Be6e5][%mdl 32]} 20. Bg5 {[%emt 0:03:18]} (20. Nf4 $1 $14 Nxf4 21. Bxf4) 20... h6 {[%emt 0:01:34]} (20... e5 $1 $15 21. g4 h6 22. Bxe7 Qxe7) 21. Bc1 {[%emt 0:06:26]} (21. Bxe7 $11 Nxe7 22. Kg2) 21... e5 $36 {[%emt 0:02:38][%mdl 2048] Black has the initiative.} 22. Bg2 {[%emt 0:00:20]} (22. g4 $15) 22... Rf6 {[%emt 0:03:30]} ({Inferior is} 22... Qf5 23. Rf1 $15) 23. Rf1 {[%emt 0:01:30]} Rdf8 {[%emt 0:01:11]} 24. g4 {[%emt 0:03:18]} Ng6 {[%emt 0:01:22]} 25. Ng3 {[%emt 0:00:32]} Bb6 {[%emt 0:01:42]} 26. g5 {[%emt 0:02:48]} hxg5 {[%emt 0:00:47]} 27. Bxg5 {[%emt 0:01:37]} R6f7 {[%emt 0:00:42]} 28. Qg4 {[%emt 0:02:25]} Qxg4 {[%emt 0:00:34]} 29. hxg4 {[%emt 0:00:02]} Ndf4 {[%emt 0:00:21]} 30. Ne4 {[%emt 0:03:30]} ({Only move:} 30. Nf5 $1 $15) 30... Nxg2 {[%emt 0:02:59]} (30... cxd3 $17 31. cxd3 Nxd3) 31. Kxg2 $15 {[%emt 0:00:06]} Nf4+ {[%emt 0:00:13]} ({Better is} 31... Bd8 $15) 32. Bxf4 $14 {[%emt 0:00:24]} Rxf4 {[%emt 0:00:11]} 33. f3 {[%emt 0:00:20]} Rc8 {[%emt 0:00:29]} 34. Rf2 {[%emt 0:00:39]} Bd8 {[%emt 0:01:03]} 35. Kg3 {[%emt 0:01:04]} Rc6 {[%emt 0:00:50]} 36. Rh1 {[%emt 0:00:53]} Be7 {[%emt 0:02:03]} 37. Rh5 {[%emt 0:01:27]} Bf6 {[%emt 0:01:03]} (37... Re6 $1 $14) 38. Nxf6+ $1 $16 {[%emt 0:05:09]} gxf6 {[%emt 0:00:17][%mdl 4096] Endgame KRR-KRR} (38... Rfxf6 $16 {was worth a try.} 39. Rxe5 cxd3 40. cxd3 Rc1) 39. Rfh2 $1 $18 {[%emt 0:01:35]} cxd3 {[%emt 0:00:30]} (39... Kf7 $142 40. Rh7+ Ke6) 40. cxd3 {[%emt 0:01:58]} Rc1 {[%emt 0:00:13] ...Rd1 would be deadly.} 41. Rh8+ {[%emt 0:00:53]} (41. Rh1 $18 Rc5 42. Rh8+ Kf7 43. R1h7+ Ke6 44. Rd8) 41... Kg7 $16 {[%emt 0:00:12]} 42. R2h7+ {[%emt 0:01:18]} Kg6 {[%emt 0:00:13] [#]} 43. Rh1 {[%emt 0:02:56] Inhibits Rf1.} Rc2 {[%emt 0:00:33][%mdl 8192]} (43... Rxh1 $16 44. Rxh1 f5) 44. R1h6+ $18 {[%emt 0:03:02]} Kg7 {[%emt 0:00:07]} 45. R6h7+ {[%emt 0:00:18]} Kg6 {[%emt 0:00:09][%cal Oc2d2]} 46. Ra7 {[%emt 0:01:37] White wants to mate with Rg8+.} Rd2 {[%emt 0:01:04]} 47. Rg8+ {[%emt 0:00:12]} (47. Rxa6 $2 Rxd3 48. Rg8+ Kf7 $19) 47... Kh6 {[%emt 0:00:11] [#]} 48. Rgg7 $1 {[%emt 0:00:22] White mates.} f5 {[%emt 0:00:50]} 49. Rh7+ {[%emt 0:00:14]} (49. Rxa6+ Kxg7 50. gxf5 Rxf5 51. Ra7+ Kg6 52. Ra6+ Rf6 $19) 49... Kg6 {[%emt 0:00:19]} 50. Rag7+ {[%emt 0:00:20]} (50. Rxa6+ $2 {is the wrong capture.} Kxh7 51. gxf5 Rxd3 $19) 50... Kf6 {[%emt 0:00:03]} 51. g5+ {[%emt 0:00:17]} Ke6 {[%emt 0:00:07]} 52. Rh6+ {[%emt 0:00:13][%mdl 64] Skewer} Kd5 {[%emt 0:00:10]} 53. Rd7+ {[%emt 0:00:16]} Kc5 {[%emt 0:00:03]} 54. b4# {[%emt 0:09:52] Weighted Error Value: White=0.21 (precise) /Black=0.42} 1-0

[Event "Ramat Gan Masters-A Winter 2023"]
[Site "Ramat Gan/ISR"]
[Date "2023.02.20"]
[Round "5.4"]
[White "Aroeta, Benny"]
[Black "Rozen, Guy"]
[Result "1-0"]
[Annotator "TA"]
[ECO "B12"]
[WhiteElo "1978"]
[BlackElo "2027"]
[PlyCount "51"]
[EventDate "2023.01.17"]
[EventType "swiss"]
[SourceTitle "playchess.com"]
[Source "ChessBase"]
[SourceQuality "1"]
[TimeControl "5400+30"]

{[%evp 13,51,19,51,0,0,0,0,0,0,-14,26,35,29,30,49,33,25,22,23,-7,0,0,0,0,0,0,25,0,0,0,8,0,131,126,1305,1288,1428,689,29991,29992]} 1. e4 {[%emt 0:00:10]} c6 {[%emt 0:00:10]} 2. d4 {[%emt 0:00:41]} d5 {[%emt 0:00:04]} 3. e5 {[%emt 0:00:14]} Bf5 {[%emt 0:00:15]} 4. Nf3 {[%emt 0:00:34]} e6 {[%emt 0:00:17]} 5. Be2 {[%emt 0:00:22]} c5 {[%emt 0:00:23]} 6. Be3 {[%emt 0:00:09]} Qb6 {[%emt 0:01:31]} 7. Nc3 {[%emt 0:00:23]} Nc6 {[%emt 0:01:11]} (7... Qxb2 8. Nb5 $16) 8. dxc5 {[%emt 0:14:52] B12: Caro-Kann: Advance Variation.} ({Better is} 8. O-O $14) 8... Bxc5 $11 {[%emt 0:01:08]} ({Don't do} 8... Qxb2 9. Nb5 $16) 9. Bxc5 {[%emt 0:02:03]} Qxc5 {[%emt 0:00:02]} 10. Nb5 {[%emt 0:00:48] The position is equal.} Kf8 {[%emt 0:03:14]} ({Resist} 10... Bxc2 11. Qd2 Qb4 12. Nc7+ Kd7 13. Qxb4 (13. Nxa8 Nge7 $16) 13... Nxb4 14. Nxa8 $16) 11. c3 {[%emt 0:02:13] [#]} Bg4 $146 {[%emt 0:03:10]} ({Predecessor:} 11... Nge7 12. O-O Be4 13. Ng5 Bf5 14. Nf3 Be4 {½-½ Vedmediuc,S (2464)-Molchanov,A (2425) Odessa Region-ch 2019 (2)}) 12. Nfd4 {[%emt 0:21:59]} Bxe2 {[%emt 0:22:04]} 13. Qxe2 {[%emt 0:01:32]} Nge7 {[%emt 0:00:06]} 14. O-O-O {[%emt 0:25:38]} Nxd4 {[%emt 0:13:56]} 15. Nxd4 {[%emt 0:03:53]} h5 {[%emt 0:11:31]} 16. f4 {[%emt 0:02:47][%cal Of4f5]} g6 {[%emt 0:00:10]} 17. Qf2 {[%emt 0:00:48][%cal Od4e6] [#] And now Nxe6+! would win.} Rc8 {[%emt 0:01:22]} 18. Qh4 {[%emt 0:04:20]} Kg8 {[%emt 0:13:22]} 19. Kb1 {[%emt 0:01:43]} b5 {[%emt 0:01:36]} 20. Qf6 {[%emt 0:05:10]} Nf5 {[%emt 0:16:47]} 21. Nxf5 {[%emt 0:01:05]} gxf5 {[%emt 0:00:03]} 22. Rd3 {[%emt 0:00:06]} h4 {[%emt 0:01:33] [#] Dodges Rg3+} (22... Rh7 $11 {keeps the balance.}) 23. g4 $1 $36 {[%emt 0:01:24][%mdl 2048] Black is under strong pressure. White is much more active.} Qc4 $2 {[%emt 0:03:18][%mdl 8192]} (23... fxg4 $16 24. f5 Qf2) 24. Rd4 $18 {[%emt 0:01:03]} Qe2 {[%emt 0:00:36]} 25. gxf5 {[%emt 0:01:22]} (25. Rg1 $142 fxg4 26. f5 exf5 27. Qxf5) 25... Qf3 {[%emt 0:03:42]} 26. Rg1+ {[%emt 0:00:30] Weighted Error Value: White=0.30/Black=0.62} 1-0

[Event "Ramat Gan Masters-A Winter 2023"]
[Site "Ramat Gan/ISR"]
[Date "2023.02.20"]
[Round "5.5"]
[White "Duchan, Yoav"]
[Black "Levitan, Ronit"]
[Result "0-1"]
[Annotator "TA"]
[ECO "C24"]
[WhiteElo "1945"]
[BlackElo "2064"]
[PlyCount "56"]
[EventDate "2023.01.17"]
[EventType "swiss"]
[SourceTitle "playchess.com"]
[Source "ChessBase"]
[SourceQuality "1"]
[TimeControl "5400+30"]

{[%evp 16,56,-6,-20,0,-24,-48,-29,-18,-4,-22,-22,-38,-90,-86,-145,-121,-114,-111,-177,-165,-170,-175,-181,-166,-176,-144,-194,-185,-217,-229,-295,-229,-372,-370,-650,-666,-691,-654,-685,-670,-661,-671]} 1. e4 {[%emt 0:00:01]} e5 {[%emt 0:00:44]} 2. Bc4 {[%emt 0:00:04]} Nf6 {[%emt 0:00:26]} 3. d4 {[%emt 0:00:05]} exd4 {[%emt 0:00:57]} 4. Nf3 {[%emt 0:00:14]} Nxe4 {[%emt 0:01:46]} 5. Qxd4 {[%emt 0:00:05]} Nf6 {[%emt 0:00:13]} 6. Nc3 {[%emt 0:00:07]} c6 {[%emt 0:00:09]} 7. Bg5 {[%emt 0:00:14]} d5 {[%emt 0:00:41]} 8. O-O-O {[%emt 0:00:05]} Be7 {[%emt 0:00:06]} 9. Rhe1 {[%emt 0:00:03]} Be6 {[%emt 0:00:13] C24: Bishop's Opening: 2...Nf6.} 10. Qh4 {[%emt 0:03:33][%cal Of3d4]} (10. Bd3 $5) 10... h6 {[%emt 0:00:57]} 11. Bd3 {[%emt 0:02:22]} Nfd7 {[%emt 0:01:34][%cal Re7g5,Bf6d7,Bd7c5,Bc5e6][%mdl 32] Black has an edge.} (11... hxg5 $2 12. Qxh8+ Kd7 13. Qxg7 $18) (11... Kd7 {is more complex.} 12. Bd2 Bd6 13. Nd4 g5) 12. Bxe7 {[%emt 0:16:19]} Qxe7 {[%emt 0:00:19]} 13. Qg3 {[%emt 0:00:31][%cal Of3d4] [#] Nd4! is the strong threat.} O-O {[%emt 0:18:30] [#]} 14. Nd4 $146 {[%emt 0:10:22]} ({White should play} 14. Ne2 $15) ({Predecessor:} 14. Ne2 Nc5 15. Nf4 Nxd3+ 16. Rxd3 Nd7 17. Nh5 g6 18. Nf4 Qf6 19. Rde3 Nc5 20. Nh5 Qe7 21. Nf4 Qf6 22. Nh5 {½-½ Filipchenko,V (2393)-Grigoryev,V (2495) Borzenko Memorial email 2015}) 14... Nc5 $17 {[%emt 0:16:49]} 15. Nxe6 {[%emt 0:05:21]} ({White should try} 15. Nce2) 15... Nxe6 {[%emt 0:00:31]} 16. f4 {[%emt 0:03:18]} Qf6 {[%emt 0:00:50]} 17. f5 {[%emt 0:00:53]} (17. Rf1 $17 {was worth a try.}) 17... Nc5 $19 {[%emt 0:00:47]} 18. Kb1 {[%emt 0:04:31]} Nbd7 {[%emt 0:04:35]} 19. Qf2 {[%emt 0:04:30]} Rfe8 {[%emt 0:09:38]} 20. g4 {[%emt 0:06:23]} Re5 {[%emt 0:08:37]} 21. Rg1 {[%emt 0:03:17]} (21. Rxe5 $17 Qxe5 22. Re1) 21... Qg5 {[%emt 0:13:05]} 22. Rg3 {[%emt 0:05:32]} Rae8 {[%emt 0:01:26]} 23. Rh1 {[%emt 0:06:53]} Qh4 {[%emt 0:09:51][%cal Od7f6]} 24. Qd2 {[%emt 0:01:49]} (24. Rf1 $142) 24... Nf6 {[%emt 0:02:16][%cal Bd7f6,Bf6e4,Be4g3][%mdl 32] [#] ...d4 would be deadly.} 25. a3 $2 {[%emt 0:04:05]} (25. Rgg1) 25... d4 {[%emt 0:00:37] Black is clearly winning.} 26. Nd1 {[%emt 0:06:25]} Nce4 {[%emt 0:00:15]} ({Worse is} 26... Nxg4 27. Rhg1 h5 28. h3 $11) 27. Bxe4 {[%emt 0:00:00]} Nxe4 {[%emt 0:00:07]} 28. Qg2 {[%emt 0:00:05]} Nxg3 {[%emt 0:00:13] Weighted Error Value: White=0.43/Black=0.08 (flawless)} 0-1